bitfinex/quotes_SOLUSD_20251007
["timestamp","ask_amount","ask_price","bid_price","bid_amount"]
[1759833918770,15.21016968,230.75,230.74,0.72]
[1759833918970,15.21016968,230.75,230.74,30.86]
[1759833919554,15.21016968,230.75,230.74,0.72]
[1759833919749,4.33348689,230.77,230.74,30.86]
[1759833920063,4.33348689,230.77,230.75,0.72]
[1759833920273,4.33348689,230.77,230.74,30.14]
[1759833920473,4.33348689,230.77,230.76,0.72]
[1759833920875,10.87647521,230.78,230.76,0.72]
[1759833921186,10.87647521,230.78,230.77,0.72]
[1759833922574,15.20960633,230.78,230.77,0.72]
[1759833923785,4.33293729,230.8,230.77,0.72]
[1759833923956,10.87647521,230.83,230.77,0.72]
[1759833924162,10.87647521,230.81,230.77,0.72]
[1759833925069,4.33275563,230.8,230.77,0.72]
[1759833925463,4.33275563,230.8,230.78,0.72]
[1759833925664,4.33275563,230.8,230.79,30.14]
[1759833926085,10.87647521,230.79,230.71,0.72]
[1759833926290,10.87647521,230.77,230.72,30.14]
[1759833926461,10.87647521,230.75,230.68,11.07647521]
[1759833926785,10.87647521,230.73,230.69,30.86]
[1759833927161,4.33425797,230.72,230.69,30.14]
[1759833927367,4.33425797,230.72,230.7,0.72]
[1759833929291,4.33425797,230.72,230.71,30.14]
[1759833929464,15.2105629,230.73,230.71,30.86]
[1759833932570,13.69038662,230.79,230.72,0.66]
[1759833932760,10.87647521,230.77,230.72,0.66]
[1759833934792,10.87647521,230.75,230.72,0.66]
[1759833936893,10.87647521,230.75,230.73,0.66]
[1759833937486,10.87647521,230.75,230.74,0.66]
[1759833938198,10.87647521,230.75,230.71,30.14]
[1759833938499,10.87647521,230.75,230.72,0.69]
[1759833938669,10.87647521,230.75,230.73,0.69]
[1759833939070,15.21018176,230.75,230.71,30.83]
[1759833939268,10.87647521,230.75,230.72,0.69]
[1759833939787,15.21022414,230.75,230.72,0.69]
[1759833939990,10.87647521,230.75,230.73,0.69]
[1759833940301,10.87647521,230.75,230.71,30.83]
[1759833940589,10.87647521,230.75,230.72,0.69]
[1759833940895,10.87647521,230.76,230.72,0.69]
[1759833941084,10.87647521,230.76,230.71,30.14]
[1759833941284,10.87647521,230.76,230.72,0.69]
[1759833941800,10.87647521,230.76,230.73,0.69]
[1759833942295,10.87647521,230.76,230.71,30.14]
[1759833942498,10.87647521,230.76,230.72,0.69]
[1759833942980,10.87647521,230.78,230.72,0.69]
[1759833943176,5.05310106,230.79,230.72,0.69]
[1759833943595,11.59647521,230.82,230.72,5.02425172]
[1759833943781,15.20866773,230.83,230.73,13.69643818]
[1759833943983,3.95994783,230.82,230.74,0.69]
[1759833944190,0.72,230.82,230.74,0.69]
[1759833945297,4.33256791,230.81,230.74,0.69]
[1759833945502,0.72,230.8,230.74,0.69]
[1759833946383,4.33239243,230.82,230.75,4.33369447]
[1759833946584,4.33239243,230.82,230.76,30.81]
[1759833946783,4.33239243,230.82,230.77,0.69]
[1759833946985,15.20849693,230.84,230.77,0.69]
[1759833947807,15.92849693,230.84,230.77,0.69]
[1759833948107,0.72,230.86,230.77,5.0232821]
[1759833948310,4.33125433,230.88,230.8,20.8]
[1759833948481,0.72,230.89,230.81,51.61]
[1759833948882,0.72,230.89,230.82,0.69]
[1759833949100,0.72,230.89,230.82,13.69023833]
[1759833949406,5.05108482,230.89,230.83,0.69]
[1759833949601,0.72,230.89,230.83,0.69]
[1759833949987,5.05108782,230.89,230.83,0.69]
[1759833953205,10.87647521,230.88,230.81,0.69]
[1759833953406,10.87647521,230.86,230.81,10.87647521]
[1759833953608,4.33200485,230.84,230.82,30.12]
[1759833953790,0.72,230.83,230.82,30.12]
[1759833955217,0.72,230.83,230.77,13.29549334]
[1759833955401,10.87647521,230.89,230.78,30.81]
[1759833955602,10.87647521,230.87,230.78,0.69]
[1759833955810,10.87647521,230.87,230.79,30.12]
[1759833955993,0.72,230.86,230.79,30.12]
[1759833956192,10.87647521,230.84,230.79,30.12]
[1759833956395,0.72,230.85,230.79,30.12]
[1759833956396,10.87647521,230.82,230.79,30.12]
[1759833956608,10.87647521,230.82,230.8,0.69]
[1759833956804,10.87647521,230.83,230.8,0.69]
[1759833958600,4.33217974,230.84,230.8,0.69]
[1759833958934,10.87647521,230.83,230.8,0.69]
[1759833959587,11.59647521,230.83,230.79,30.12]
[1759833959785,11.59647521,230.83,230.79,30.81]
[1759833960030,0.72,230.85,230.8,0.69]
[1759833960194,10.87647521,230.85,230.81,0.69]
[1759833960397,10.87647521,230.87,230.81,0.69]
[1759833960992,11.59647521,230.87,230.81,0.69]
[1759833961309,11.59647521,230.87,230.82,30.12]
[1759833961506,0.67,230.86,230.82,30.12]
[1759833961711,4.33200485,230.84,230.82,30.12]
[1759833962015,5.00200485,230.84,230.82,30.12]
[1759833962211,5.00200485,230.84,230.76,0.71]
[1759833962212,11.54647521,230.83,230.76,0.71]
[1759833962414,11.54647521,230.83,230.77,30.12]
[1759833962626,0.67,230.82,230.77,30.12]
[1759833962836,0.67,230.82,230.78,0.71]
[1759833963422,0.67,230.82,230.77,30.12]
[1759833963628,10.87647521,230.83,230.78,0.71]
[1759833963828,10.87647521,230.83,230.77,30.12]
[1759833963829,15.87866783,230.83,230.79,0.71]
[1759833964527,0.67,230.82,230.79,0.71]
[1759833964728,0.67,230.82,230.77,30.12]
[1759833964947,0.67,230.82,230.78,0.71]
[1759833965653,5.00239466,230.82,230.78,0.71]
[1759833965963,10.87647521,230.8,230.73,0.71]
[1759833966256,10.87647521,230.78,230.74,30.12]
[1759833966501,0.67,230.77,230.74,30.12]
[1759833966740,10.87647521,230.76,230.74,30.12]
[1759833966948,15.88014131,230.76,230.74,30.12]
[1759833967162,15.88014131,230.76,230.75,30.12]
[1759833967712,15.88014131,230.76,230.71,0.71]
[1759833967924,15.88014131,230.76,230.72,30.83]
[1759833969317,11.54647521,230.76,230.72,30.83]
[1759833969715,10.87647521,230.76,230.72,30.83]
[1759833970025,11.54647521,230.78,230.73,0.71]
[1759833970741,10.87647521,230.76,230.73,0.71]
[1759833970933,10.87647521,230.76,230.74,30.12]
[1759833971928,10.87647521,230.77,230.74,30.83]
[1759833973142,10.87647521,230.77,230.74,30.12]
[1759833973439,0.67,230.76,230.74,30.12]
[1759833974628,0.67,230.76,230.71,0.71]
[1759833974822,4.33341111,230.77,230.72,30.83]
[1759833975024,5.00341111,230.77,230.73,0.71]
[1759833975529,5.00341111,230.77,230.74,30.12]
[1759833975842,10.87647521,230.77,230.74,30.12]
[1759833976041,0.67,230.76,230.74,30.12]
[1759833976544,10.87647521,230.77,230.74,30.12]
[1759833976762,10.87647521,230.77,230.74,30.83]
[1759833977427,0.67,230.76,230.74,30.12]
[1759833977947,15.20988526,230.77,230.74,30.12]
[1759833978151,15.87988526,230.77,230.74,30.12]
[1759833978940,15.20988526,230.77,230.74,30.12]
[1759833979242,15.87988526,230.77,230.74,30.12]
[1759833979542,15.20988526,230.77,230.74,30.12]
[1759833979731,0.67,230.77,230.74,30.12]
[1759833980730,4.33350667,230.76,230.74,30.12]
[1759833983950,4.33350667,230.76,230.74,30.83]
[1759833987050,4.33350667,230.76,230.74,30.12]
[1759833987259,15.20998188,230.76,230.75,0.71]
[1759833987440,15.20998188,230.76,230.74,30.12]
[1759833987760,15.20998188,230.76,230.74,30.83]
[1759833988046,0.67,230.75,230.74,30.12]
[1759833989428,15.20998188,230.76,230.74,30.12]
[1759833990024,15.87998188,230.76,230.74,30.12]
[1759833990934,15.20998188,230.76,230.74,30.12]
[1759833992454,15.88998188,230.76,230.74,30.12]
[1759833992861,10.87647521,230.75,230.68,21.0]
[1759833993073,11.55647521,230.75,230.68,0.2]
[1759833993380,13.28549334,230.75,230.69,30.12]
[1759833993553,10.87647521,230.73,230.69,30.12]
[1759833993748,11.55647521,230.73,230.69,30.81]
[1759833994563,15.89072936,230.73,230.69,30.81]
[1759833995769,15.21072936,230.73,230.7,0.69]
[1759833997080,15.89072936,230.73,230.7,0.69]
[1759833997771,15.89072936,230.73,230.69,30.12]
[1759833997975,15.89072936,230.73,230.69,30.82]
[1759833998374,4.33438664,230.72,230.69,30.82]
[1759833999256,4.33438664,230.72,230.69,30.12]
[1759833999456,4.33438664,230.72,230.69,30.82]
[1759833999682,10.87647521,230.73,230.7,0.7]
[1759833999979,10.87647521,230.73,230.69,30.12]
[1759834000180,15.21059604,230.73,230.7,0.7]
[1759834000765,15.21059604,230.73,230.69,30.12]
[1759834000962,15.21059604,230.73,230.7,0.7]
[1759834002762,10.87647521,230.73,230.7,0.7]
[1759834003081,4.33411908,230.73,230.7,0.7]
[1759834003265,5.02411908,230.73,230.69,30.12]
[1759834003464,5.02411908,230.73,230.69,30.82]
[1759834003794,11.56647521,230.72,230.69,30.82]
[1759834004382,11.56647521,230.72,230.69,30.12]
[1759834004773,4.33444584,230.71,230.69,30.12]
[1759834004973,5.02444584,230.71,230.69,30.12]
[1759834005719,10.87647521,230.69,230.68,0.2]
[1759834005993,10.87647521,230.69,230.68,30.32]
[1759834006284,0.69,230.69,230.68,30.32]
[1759834006863,10.87647521,230.7,230.68,30.32]
[1759834007065,15.90114767,230.7,230.68,30.32]
[1759834010100,0.69,230.69,230.68,0.2]
[1759834010273,0.69,230.69,230.68,30.32]
[1759834011484,0.69,230.69,230.68,0.2]
[1759834011671,0.69,230.69,230.68,30.32]
[1759834012188,5.02482162,230.69,230.68,30.32]
[1759834012493,15.90129683,230.69,230.68,30.32]
[1759834022304,18.60440908,230.69,230.68,30.32]
[1759834023879,15.90129683,230.69,230.68,30.32]
[1759834024705,15.21129683,230.69,230.68,30.32]
[1759834025014,15.91129683,230.69,230.68,30.32]
[1759834029826,15.21129683,230.69,230.68,30.32]
[1759834031033,15.91129683,230.69,230.68,30.32]
[1759834031606,15.21129683,230.69,230.68,30.32]
[1759834037129,18.61440908,230.69,230.68,0.2]
[1759834039636,15.91129683,230.69,230.68,0.2]
[1759834041313,18.61440908,230.69,230.68,0.2]
[1759834046619,31.62931114,230.69,230.68,0.2]
[1759834048540,34.87104791,230.69,230.68,0.2]
[1759834051027,32.16793566,230.69,230.68,1e-08]
[1759834051218,10.87647521,230.67,230.66,0.2]
[1759834051541,19.7409413,230.67,230.66,0.2]
[1759834051726,20.4109413,230.67,230.66,0.2]
[1759834051912,42.94656276,230.67,230.66,0.2]
[1759834052113,22.14656276,230.67,230.66,1e-08]
[1759834053042,26.48176022,230.67,230.66,1e-08]
[1759834056937,40.9890309,230.67,230.66,0.71000001]
[1759834057138,43.69214315,230.67,230.66,1e-08]
[1759834058534,43.69214315,230.67,230.66,0.66000001]
[1759834059229,43.69214315,230.67,230.66,1e-08]
[1759834060443,43.68418119,230.67,230.66,1e-08]
[1759834061061,44.36418119,230.67,230.66,1e-08]
[1759834061748,41.66106894,230.67,230.66,1e-08]
[1759834061945,44.36418119,230.67,230.66,1e-08]
[1759834067161,40.98106894,230.67,230.66,1e-08]
[1759834067369,43.39267902,230.67,230.66,1e-08]
[1759834068374,40.98106894,230.67,230.66,1e-08]
[1759834068662,42.71267902,230.67,230.66,1e-08]
[1759834069055,33.56426522,230.82,230.66,1e-08]
[1759834069056,3.63330275,230.81,230.66,0.66000001]
[1759834069234,4.8407716,230.86,230.7,20.8]
[1759834069235,13.00672013,230.86,230.7,20.8]
[1759834069439,13.00672013,230.86,230.74,25.1337932]
[1759834069644,17.33836288,230.86,230.75,53.4845394]
[1759834069860,4.33106674,230.89,230.75,53.4845394]
[1759834070052,15.15873359,230.89,230.75,41.58113096]
[1759834070254,15.15873359,230.89,230.76,13.00474673]
[1759834070459,17.57034367,230.89,230.76,13.00474673]
[1759834070664,0.68,230.88,230.76,13.00474673]
[1759834070969,0.68,230.88,230.77,30.46]
[1759834071141,10.87647521,230.87,230.78,30.44]
[1759834071568,10.87647521,230.85,230.78,30.44]
[1759834071763,10.87647521,230.85,230.79,13.0053105]
[1759834071941,1.73161008,230.8,230.79,13.0053105]
[1759834072142,31.67647521,230.76,230.67,33.78]
[1759834072369,10.87647521,230.74,230.67,33.78]
[1759834073269,10.87647521,230.72,230.67,33.78]
[1759834076166,13.01151519,230.73,230.67,33.78]
[1759834076367,15.20978837,230.78,230.67,38.11515467]
[1759834076669,10.87647521,230.75,230.67,38.11515467]
[1759834076845,4.33331316,230.78,230.67,38.11515467]
[1759834077045,10.87647521,230.75,230.67,38.11515467]
[1759834077962,10.87647521,230.75,230.67,33.78]
[1759834078273,4.33372615,230.75,230.68,30.46]
[1759834079044,10.87647521,230.73,230.67,33.78]
[1759834079249,10.87647521,230.71,230.68,30.46]
[1759834079585,0.68,230.7,230.69,30.46]
[1759834080154,5.01463372,230.7,230.69,30.46]
[1759834080648,4.33463372,230.7,230.67,33.78]
[1759834080854,4.33463372,230.7,230.68,30.46]
[1759834082073,4.33463372,230.7,230.69,30.46]
[1759834082270,0.67,230.77,230.69,30.46]
[1759834082472,10.87647521,230.73,230.69,30.46]
[1759834082768,10.87647521,230.73,230.7,30.46]
[1759834083862,11.54647521,230.73,230.7,30.46]
[1759834084062,15.88073318,230.72,230.71,30.46]
[1759834084256,15.88073318,230.72,230.67,33.78]
[1759834084257,10.87647521,230.71,230.67,33.78]
[1759834084451,10.87647521,230.69,230.68,30.46]
[1759834085156,15.8399029,230.72,230.68,30.46]
[1759834085352,10.87647521,230.71,230.68,30.46]
[1759834085551,4.33425797,230.72,230.68,30.46]
[1759834085875,10.87647521,230.73,230.68,30.46]
[1759834086454,4.33425797,230.72,230.68,30.46]
[1759834086654,10.87647521,230.73,230.68,30.46]
[1759834087175,10.87647521,230.75,230.68,30.46]
[1759834087374,10.87647521,230.77,230.68,34.79499604]
[1759834088178,4.33329783,230.78,230.68,34.79499604]
[1759834088562,10.87647521,230.79,230.68,34.79499604]
[1759834089489,10.87647521,230.82,230.71,20.8]
[1759834089780,10.87647521,230.82,230.72,30.5]
[1759834089965,10.87647521,230.82,230.75,20.8]
[1759834090166,10.87647521,230.82,230.76,30.52]
[1759834090556,4.33256791,230.81,230.76,30.52]
[1759834092784,4.33256791,230.81,230.77,30.5]
[1759834093161,11.54647521,230.8,230.74,13.00643818]
[1759834093354,10.87647521,230.78,230.75,30.5]
[1759834093550,11.54647521,230.78,230.75,30.5]
[1759834097001,10.87647521,230.76,230.71,13.00813008]
[1759834097167,10.87647521,230.74,230.67,33.78]
[1759834097491,0.67,230.73,230.68,30.48]
[1759834097666,28.17700272,230.77,230.68,30.48]
[1759834097667,0.67,230.72,230.68,30.48]
[1759834098183,0.67,230.74,230.68,30.48]
[1759834098562,4.33407012,230.73,230.68,30.48]
[1759834099495,0.67,230.72,230.68,30.48]
[1759834099664,0.67,230.71,230.68,30.48]
[1759834099867,0.67,230.7,230.68,30.48]
[1759834100061,0.67,230.7,230.67,33.78]
[1759834100262,0.67,230.69,230.68,30.48]
[1759834100791,11.54647521,230.72,230.68,30.48]
[1759834101084,10.87647521,230.7,230.68,30.48]
[1759834101468,10.87647521,230.72,230.68,30.48]
[1759834101671,11.54647521,230.72,230.68,30.48]
[1759834102072,10.87647521,230.7,230.68,30.48]
[1759834102476,10.87647521,230.72,230.68,30.48]
[1759834102677,15.21110893,230.7,230.68,30.48]
[1759834103670,15.88110893,230.7,230.68,30.48]
[1759834103874,15.21110893,230.7,230.68,30.48]
[1759834107186,0.67,230.69,230.66,1e-08]
[1759834107388,10.87647521,230.68,230.66,1e-08]
[1759834107590,10.87647521,230.68,230.67,30.44]
[1759834107794,11.54647521,230.68,230.67,30.44]
[1759834109306,15.88148474,230.68,230.67,30.44]
[1759834114215,15.21148474,230.68,230.67,30.44]
[1759834114886,15.88148474,230.68,230.67,30.44]
[1759834115910,15.21148474,230.68,230.67,30.44]
[1759834117132,15.88148474,230.68,230.67,30.44]
[1759834120323,15.21148474,230.68,230.67,30.44]
[1759834121025,15.21148474,230.68,230.67,30.4]
[1759834121325,15.21148474,230.68,230.66,1e-08]
[1759834121512,15.21148474,230.68,230.67,30.4]
[1759834123418,15.21148474,230.68,230.67,30.38]
[1759834124635,15.92148474,230.68,230.67,30.38]
[1759834125343,15.21148474,230.68,230.67,30.38]
[1759834126031,4.33500953,230.68,230.67,30.38]
[1759834126830,11.58647521,230.72,230.67,30.38]
[1759834127030,10.87647521,230.7,230.67,30.38]
[1759834127232,11.58647521,230.7,230.67,30.38]
[1759834127425,0.71,230.69,230.66,1e-08]
[1759834127632,0.71,230.69,230.67,30.36]
[1759834129027,4.33500953,230.68,230.67,30.36]
[1759834129403,15.92148474,230.68,230.67,30.36]
[1759834129608,10.87647521,230.67,230.66,1e-08]
[1759834129839,11.58647521,230.67,230.66,30.36000001]
[1759834131133,4.33519746,230.67,230.66,30.36000001]
[1759834131834,5.04519746,230.67,230.66,30.36000001]
[1759834132618,4.33519746,230.67,230.66,30.36000001]
[1759834135728,5.04519746,230.67,230.66,30.36000001]
[1759834136437,4.33519746,230.67,230.66,30.36000001]
[1759834137145,15.21151863,230.68,230.66,30.36000001]
[1759834137515,4.33481886,230.7,230.66,30.36000001]
[1759834138133,4.33425797,230.72,230.66,30.36000001]
[1759834138442,10.87647521,230.73,230.66,30.36000001]
[1759834139131,15.21058232,230.73,230.66,34.69533472]
[1759834139333,10.87647521,230.74,230.66,34.69533472]
[1759834139943,4.33407012,230.73,230.66,34.69533472]
[1759834140647,11.58647521,230.72,230.67,30.34]
[1759834140945,0.71,230.71,230.68,30.34]
[1759834141335,0.68,230.7,230.68,30.34]
[1759834141844,4.33482162,230.69,230.66,1e-08]
[1759834142160,5.01482162,230.69,230.66,1e-08]
[1759834142330,5.01482162,230.69,230.67,30.36]
[1759834142528,0.68,230.68,230.67,30.36]
[1759834143928,5.01500953,230.68,230.67,30.36]
[1759834144126,10.87647521,230.69,230.67,30.36]
[1759834145153,11.55647521,230.69,230.67,30.36]
[1759834145445,0.68,230.68,230.67,30.36]
[1759834146147,5.01500953,230.68,230.67,30.36]
[1759834147446,15.89148474,230.68,230.67,30.36]
[1759834149045,4.33500953,230.68,230.67,30.36]
[1759834149760,4.33500953,230.68,230.67,30.34]
[1759834150365,5.01500953,230.68,230.67,30.34]
[1759834150543,5.01500953,230.68,230.66,1e-08]
[1759834150745,4.33500953,230.68,230.67,30.32]
[1759834151369,5.01500953,230.68,230.67,30.32]
[1759834156162,10.87647521,230.69,230.67,30.32]
[1759834156461,0.68,230.69,230.67,30.32]
[1759834157170,5.0148463,230.69,230.67,30.32]
[1759834157571,0.68,230.72,230.67,30.32]
[1759834157771,0.68,230.74,230.67,30.32]
[1759834158073,10.87647521,230.74,230.67,30.32]
[1759834158857,4.33350667,230.76,230.67,34.65514915]
[1759834159058,4.33350667,230.76,230.67,55.45514915]
[1759834159564,4.33350667,230.76,230.7,20.8]
[1759834160664,0.68,230.77,230.7,25.13459039]
[1759834160886,4.33319827,230.78,230.7,25.13459039]
[1759834161253,4.33319827,230.78,230.7,20.8]
[1759834161875,4.33319827,230.78,230.7,25.1345996]
[1759834163769,4.33319827,230.78,230.7,20.8]
[1759834163954,4.33319827,230.78,230.71,30.3]
[1759834165160,15.20941857,230.79,230.71,34.63435294]
[1759834165754,15.88941857,230.79,230.71,30.3]
[1759834165963,0.68,230.78,230.71,30.3]
[1759834167380,4.33331888,230.77,230.71,30.3]
[1759834168475,15.20949063,230.79,230.71,34.63432368]
[1759834168679,4.33301542,230.79,230.71,34.63432368]
[1759834168861,4.33276353,230.8,230.71,34.63432368]
[1759834170390,10.87647521,230.82,230.71,4.33432368]
[1759834170593,0.68,230.8,230.72,30.28]
[1759834171587,4.33313112,230.78,230.72,30.28]
[1759834175592,4.33313112,230.78,230.72,20.8]
[1759834175794,4.33313112,230.78,230.73,30.26]
[1759834176184,15.16417124,230.81,230.73,30.26]
[1759834176389,0.67,230.79,230.73,30.26]
[1759834177294,4.33313112,230.78,230.73,30.26]
[1759834177495,5.00313112,230.78,230.73,30.26]
[1759834178482,4.33313112,230.78,230.73,30.26]
[1759834178803,5.00288019,230.8,230.73,30.26]
[1759834180576,15.16417124,230.81,230.73,30.26]
[1759834180776,0.67,230.8,230.73,30.26]
[1759834183399,0.67,230.79,230.72,20.8]
[1759834183596,0.67,230.78,230.74,30.22]
[1759834183797,0.67,230.77,230.74,30.22]
[1759834184098,0.67,230.76,230.74,30.22]
[1759834185706,4.3332659,230.78,230.74,30.22]
[1759834185905,0.67,230.77,230.74,30.22]
[1759834186099,4.3332659,230.78,230.74,30.22]
[1759834186299,10.87647521,230.83,230.74,30.22]
[1759834186480,15.87866773,230.83,230.74,30.22]
[1759834186682,15.87866773,230.83,230.74,34.55380888]
[1759834186903,15.20866773,230.83,230.74,34.55380888]
[1759834188314,0.67,230.84,230.77,20.8]
[1759834188614,0.67,230.84,230.78,30.24]
[1759834189309,5.00201794,230.84,230.78,30.24]
[1759834191816,5.00201794,230.84,230.78,34.57311999]
[1759834192319,5.00201794,230.84,230.79,30.24]
[1759834193110,5.00201794,230.84,230.79,43.43379292]
[1759834194012,0.67,230.83,230.79,43.43379292]
[1759834197325,5.00202297,230.84,230.79,43.43379292]
[1759834197506,5.00202297,230.84,230.8,30.22]
[1759834197926,0.67,230.83,230.8,30.22]
[1759834200899,0.67,230.82,230.77,20.8]
[1759834201100,0.67,230.81,230.76,12.73923556]
[1759834201320,0.67,230.8,230.77,30.2]
[1759834201625,0.66,230.79,230.77,30.2]
[1759834202296,15.86848006,230.84,230.77,30.2]
[1759834203316,15.86848006,230.84,230.77,34.53325939]
[1759834203522,4.33182876,230.85,230.77,55.33325939]
[1759834203720,15.2081092,230.86,230.8,20.8]
[1759834203919,0.66,230.89,230.81,30.24]
[1759834204224,0.66,230.88,230.81,30.24]
[1759834205122,0.66,230.88,230.81,34.57253744]
[1759834205326,4.99140334,230.88,230.81,25.13253744]
[1759834205530,4.99140334,230.88,230.82,30.26]
[1759834205906,4.99140334,230.88,230.81,4.33253744]
[1759834206227,4.99140334,230.88,230.82,30.26]
[1759834206833,4.99140334,230.88,230.81,20.8]
[1759834207042,0.66,230.87,230.82,30.26]
[1759834207222,0.66,230.86,230.82,30.26]
[1759834208335,4.99180601,230.86,230.82,30.26]
[1759834210118,4.33180601,230.86,230.82,30.26]
[1759834210719,4.33144193,230.87,230.82,30.26]
[1759834210919,4.99144193,230.87,230.82,30.26]
[1759834211121,0.66,230.86,230.82,30.26]
[1759834211741,4.99144193,230.87,230.82,30.26]
[1759834212035,4.33144193,230.87,230.82,30.26]
[1759834212442,4.99098848,230.9,230.82,30.26]
[1759834212621,4.33098848,230.9,230.82,34.59233233]
[1759834212818,4.99098848,230.9,230.82,34.59233233]
[1759834213855,4.33098848,230.9,230.82,34.59233233]
[1759834214219,0.2,230.91,230.82,45.41877669]
[1759834214426,4.53074297,230.91,230.82,45.41877669]
[1759834215027,4.53074297,230.91,230.82,34.59233233]
[1759834215560,0.66,230.9,230.82,30.26]
[1759834216150,4.53074297,230.91,230.82,30.26]
[1759834216552,4.53074297,230.91,230.85,20.8]
[1759834216734,0.2,230.91,230.86,30.24]
[1759834220851,0.2,230.91,230.86,34.57156713]
[1759834221565,0.2,230.91,230.86,38.90157654]
[1759834222367,0.2,230.91,230.86,34.57000941]
[1759834223157,0.2,230.91,230.87,20.8]
[1759834223560,5.19072843,230.91,230.88,30.24]
[1759834223878,0.66,230.9,230.83,20.8]
[1759834224066,0.66,230.9,230.66,43.64976016]
[1759834224067,0.66,230.9,230.87,20.8]
[1759834224270,4.53072843,230.91,230.88,30.24]
[1759834224472,5.19072843,230.91,230.88,30.24]
[1759834225159,0.66,230.9,230.89,30.22]
[1759834226083,4.99087916,230.9,230.89,30.22]
[1759834227683,4.99087916,230.9,230.84,20.8]
[1759834227895,4.99087916,230.9,230.85,30.22]
[1759834228065,0.66,230.89,230.85,30.22]
[1759834228575,0.66,230.89,230.85,20.8]
[1759834228894,0.66,230.89,230.86,30.22]
[1759834230266,4.99116717,230.89,230.86,30.22]
[1759834231475,4.53076129,230.91,230.86,30.22]
[1759834231674,5.21076129,230.91,230.86,30.22]
[1759834232203,5.21076129,230.91,230.84,20.8]
[1759834232204,0.68,230.9,230.85,20.8]
[1759834232506,0.68,230.89,230.86,30.2]
[1759834233492,4.53076129,230.91,230.86,30.2]
[1759834233692,5.21076129,230.91,230.86,30.2]
[1759834234810,0.68,230.9,230.86,30.2]
[1759834235802,0.2,230.91,230.86,30.2]
[1759834236003,5.21078466,230.91,230.86,30.2]
[1759834236182,0.68,230.9,230.86,30.2]
[1759834236379,5.21078466,230.91,230.86,30.2]
[1759834236582,0.68,230.9,230.86,30.2]
[1759834236792,5.21078466,230.91,230.86,30.2]
[1759834237192,0.88,230.91,230.86,30.2]
[1759834238987,5.21071188,230.91,230.86,30.2]
[1759834239210,5.21071188,230.91,230.87,30.18]
[1759834241615,0.66,230.9,230.87,30.18]
[1759834242887,4.53071188,230.91,230.87,30.18]
[1759834243415,5.19071188,230.91,230.87,30.18]
[1759834243715,0.66,230.9,230.87,30.18]
[1759834244904,4.53071188,230.91,230.87,30.18]
[1759834245111,0.86,230.91,230.87,30.18]
[1759834245312,0.86,230.91,230.86,20.8]
[1759834245515,5.19069852,230.91,230.88,30.18]
[1759834245814,0.86,230.91,230.88,30.18]
[1759834246905,0.86,230.91,230.86,20.8]
[1759834247116,0.86,230.91,230.87,30.18]
[1759834248413,5.19071177,230.91,230.87,30.18]
[1759834248617,0.86,230.91,230.87,30.18]
[1759834251115,0.2,230.91,230.87,30.18]
[1759834251896,0.66,230.9,230.87,30.18]
[1759834252399,0.2,230.91,230.87,30.18]
[1759834252616,0.86,230.91,230.88,20.8]
[1759834252825,0.86,230.91,230.88,50.98]
[1759834253012,0.66,230.9,230.88,50.98]
[1759834253405,0.2,230.91,230.88,50.98]
[1759834253601,0.86,230.91,230.88,50.98]